bitfinex/quotes_SOLUSD_20250908
["timestamp","ask_amount","ask_price","bid_price","bid_amount"]
[1757334940026,5.35265678,214.47,214.42,0.03]
[1757334940410,4.66265678,214.47,214.43,0.71]
[1757334940718,4.66265678,214.47,214.44,0.71]
[1757334940920,5.35265678,214.47,214.43,0.71]
[1757334941131,4.66265678,214.47,214.44,0.71]
[1757334941436,4.66243938,214.48,214.44,0.71]
[1757334941612,4.66243938,214.48,214.45,0.71]
[1757334943129,16.31783496,214.49,214.42,0.03]
[1757334943320,4.66222201,214.49,214.44,26.0]
[1757334943505,4.66222201,214.49,214.45,0.71]
[1757334943711,84.95196996,214.51,214.46,0.71]
[1757334943927,0.69,214.5,214.46,0.71]
[1757334944430,84.26196996,214.51,214.44,26.0]
[1757334944619,84.26196996,214.51,214.47,0.71]
[1757334944822,0.69,214.5,214.45,0.71]
[1757334945014,0.69,214.5,214.44,26.0]
[1757334945216,0.69,214.5,214.46,0.71]
[1757334946017,5.35220255,214.5,214.46,0.71]
[1757334947239,4.66220255,214.5,214.47,0.71]
[1757334947736,79.6,214.51,214.48,0.71]
[1757334947920,0.69,214.53,214.47,0.71]
[1757334948230,3.87593487,214.52,214.45,0.71]
[1757334948438,0.69,214.51,214.46,36.38]
[1757334948624,0.69,214.5,214.46,37.09]
[1757334948826,3.87593487,214.52,214.46,37.09]
[1757334949139,3.87593487,214.52,214.46,0.71]
[1757334949440,4.66178732,214.51,214.48,0.5]
[1757334950943,5.35178732,214.51,214.48,0.5]
[1757334951433,16.3132137,214.55,214.48,0.5]
[1757334951643,3.87593487,214.52,214.48,1.21]
[1757334952141,3.87593487,214.53,214.48,1.21]
[1757334952436,4.56593487,214.53,214.48,1.21]
[1757334952932,4.66157001,214.52,214.48,0.5]
[1757334953130,4.66157001,214.52,214.48,1.21]
[1757334953546,16.21944363,214.53,214.49,0.71]
[1757334953547,5.35136574,214.53,214.49,0.71]
[1757334953718,5.35136574,214.53,214.48,0.5]
[1757334953719,4.66136574,214.53,214.5,0.71]
[1757334954035,4.66136574,214.53,214.51,0.71]
[1757334954239,4.66092172,214.55,214.52,0.71]
[1757334954443,4.66092172,214.55,214.5,0.71]
[1757334954739,4.66092172,214.55,214.51,0.71]
[1757334955215,8.53685659,214.55,214.51,0.71]
[1757334955414,9.22685659,214.55,214.51,0.71]
[1757334955916,4.66092172,214.55,214.51,0.71]
[1757334956133,4.66092172,214.55,214.52,0.71]
[1757334957423,4.66092172,214.55,214.49,26.0]
[1757334957628,4.66092172,214.55,214.5,0.71]
[1757334957826,4.66092172,214.55,214.51,36.82]
[1757334958034,4.66092172,214.55,214.52,0.71]
[1757334958731,82.07916382,214.56,214.51,36.82]
[1757334958732,79.6,214.56,214.53,0.71]
[1757334959127,4.7201295,214.59,214.54,26.0]
[1757334959332,0.06,214.59,214.55,0.71]
[1757334959542,4.72005808,214.59,214.56,36.32]
[1757334959742,4.72005808,214.59,214.57,0.71]
[1757334960121,0.06,214.59,214.54,26.0]
[1757334960320,2.47916382,214.55,214.51,37.05]
[1757334960940,79.6,214.58,214.52,0.71]
[1757334961117,79.6,214.58,214.54,26.0]
[1757334961321,82.07916382,214.58,214.55,0.71]
[1757334961522,79.6,214.58,214.55,0.71]
[1757334961722,79.6,214.58,214.54,26.0]
[1757334962046,0.06,214.56,214.54,26.71]
[1757334962340,0.06,214.56,214.55,0.71]
[1757334962544,0.00877548,214.56,214.55,26.71]
[1757334963040,0.00877548,214.56,214.55,63.13]
[1757334964636,0.00877548,214.56,214.55,0.71]
[1757334964836,0.00877548,214.56,214.55,26.71]
[1757334965044,0.00877548,214.56,214.55,63.15]
[1757334966033,0.00877548,214.56,214.55,37.15]
[1757334966231,0.00877548,214.56,214.55,0.71]
[1757334966430,0.00877548,214.56,214.55,37.15]
[1757334967234,0.00877548,214.56,214.55,0.71]
[1757334967436,0.00877548,214.56,214.55,37.13]
[1757334967842,0.00877548,214.56,214.55,0.71]
[1757334968035,0.00877548,214.56,214.55,37.63]
[1757334968949,4.66031748,214.58,214.55,37.63]
[1757334969142,7.1394813,214.58,214.55,37.63]
[1757334969532,4.66031748,214.58,214.56,36.4]
[1757334969854,2.47916382,214.57,214.56,37.06]
[1757334970057,2.47916382,214.57,214.56,36.4]
[1757334970256,2.47916382,214.57,214.56,37.06]
[1757334970557,2.47916382,214.57,214.55,0.5]
[1757334970732,4.66031748,214.58,214.56,36.4]
[1757334970937,2.47916382,214.57,214.55,0.5]
[1757334971139,2.47916382,214.56,214.55,0.5]
[1757334971338,3.15916382,214.56,214.55,36.9]
[1757334971643,7.13986478,214.56,214.55,36.9]
[1757334971840,7.81986478,214.56,214.55,0.5]
[1757334972053,7.81986478,214.56,214.55,36.9]
[1757334972444,7.13986478,214.56,214.55,36.9]
[1757334972754,7.81986478,214.56,214.55,36.9]
[1757334972952,7.13986478,214.56,214.55,36.9]
[1757334973554,7.81986478,214.56,214.55,0.5]
[1757334973855,19.4716172,214.56,214.53,36.38]
[1757334974155,2.47916382,214.54,214.52,36.38]
[1757334974361,3.15916382,214.53,214.46,0.66]
[1757334974548,2.47916382,214.47,214.46,0.66]
[1757334974730,2.47916382,214.47,214.46,36.4]
[1757334976132,2.47916382,214.47,214.44,0.69]
[1757334976333,2.47916382,214.46,214.45,36.4]
[1757334977661,2.47916382,214.46,214.45,37.06]
[1757334978262,0.68,214.53,214.45,37.06]
[1757334978449,4.66135272,214.53,214.46,0.66]
[1757334978650,2.47916382,214.52,214.48,26.0]
[1757334978963,2.47916382,214.52,214.49,37.04]
[1757334979136,4.66135272,214.53,214.49,37.04]
[1757334979340,2.47916382,214.53,214.5,0.66]
[1757334979557,2.47916382,214.53,214.51,0.66]
[1757334979761,7.14032644,214.54,214.51,0.66]
[1757334980069,7.14032644,214.54,214.51,1.16]
[1757334980655,2.47916382,214.52,214.51,0.5]
[1757334982446,0.68,214.53,214.51,0.5]
[1757334982648,2.47916382,214.52,214.51,0.5]
[1757334982952,7.82073383,214.52,214.51,0.5]
[1757334983657,7.14073383,214.52,214.51,0.5]
[1757334983865,7.82073383,214.52,214.51,0.5]
[1757334985568,7.14073383,214.52,214.51,0.5]
[1757334986138,7.82073383,214.52,214.51,0.5]
[1757334986350,7.82073383,214.52,214.5,36.4]
[1757334986559,2.47916382,214.51,214.5,36.4]
[1757334986870,4.66157001,214.52,214.5,36.4]
[1757334987048,2.47916382,214.51,214.5,36.4]
[1757334987247,0.06,214.56,214.53,26.0]
[1757334987438,0.06,214.56,214.51,0.66]
[1757334987640,0.06,214.56,214.52,37.02]
[1757334988067,0.06,214.56,214.53,0.66]
[1757334988364,0.06,214.56,214.54,0.66]
[1757334988742,2.53916382,214.56,214.54,0.66]
[1757334989065,2.47916382,214.55,214.52,36.97064461]
[1757334989265,2.47916382,214.55,214.53,0.66]
[1757334989864,4.66113545,214.54,214.53,0.66]
[1757334991046,7.14029927,214.54,214.52,36.31064461]
[1757334991261,7.14029927,214.54,214.52,36.97064461]
[1757334991665,2.47916382,214.53,214.49,0.66]
[1757334991880,4.66200466,214.5,214.48,0.5]
[1757334992055,7.14116848,214.5,214.49,36.66]
[1757334994165,7.14116848,214.5,214.49,37.32]
[1757334994771,2.47916382,214.51,214.49,37.32]
[1757334994982,2.47916382,214.51,214.5,0.66]
[1757334995475,2.47916382,214.51,214.49,36.66]
[1757334995654,2.47916382,214.51,214.49,37.36]
[1757334996382,16.31397408,214.54,214.49,37.36]
[1757334996674,0.06,214.56,214.5,0.7]
[1757334996981,2.47916382,214.55,214.5,0.7]
[1757334997157,2.47916382,214.54,214.51,0.7]
[1757334997563,2.47916382,214.53,214.51,0.7]
[1757334997768,2.47916382,214.52,214.49,36.66]
[1757334997972,17.03245338,214.56,214.5,0.7]
[1757334998154,2.47916382,214.52,214.5,0.7]
[1757334998470,2.47916382,214.53,214.5,0.7]
[1757334998665,2.47916382,214.53,214.51,37.32]
[1757334998869,4.66157001,214.52,214.51,37.32]
[1757334999283,4.66132115,214.54,214.51,37.32]
[1757334999580,2.47916382,214.53,214.51,37.32]
[1757334999770,2.47916382,214.53,214.51,0.7]
[1757334999954,2.47916382,214.53,214.52,36.62]
[1757335000575,4.66132115,214.54,214.52,36.62]
[1757335000779,2.47916382,214.53,214.52,36.62]
[1757335001072,7.14051654,214.53,214.52,36.62]
[1757335002564,7.86051654,214.53,214.49,0.03]
[1757335002763,2.47916382,214.5,214.49,0.03]
[1757335003165,3.13916382,214.5,214.49,0.03]
[1757335004478,2.47916382,214.5,214.49,0.03]
[1757335004682,7.14116848,214.5,214.49,0.03]
[1757335005968,7.80116848,214.5,214.49,0.03]
[1757335006487,7.14116848,214.5,214.49,0.03]
[1757335009971,7.80116848,214.5,214.49,0.03]
[1757335010289,7.14116848,214.5,214.49,0.03]
[1757335011287,5.32200466,214.5,214.49,0.03]
[1757335011477,7.14116848,214.5,214.49,0.03]
[1757335014089,7.14116848,214.5,214.49,1.23]
[1757335014471,4.66200466,214.5,214.49,1.23]
[1757335015992,7.14116848,214.5,214.49,0.53]
[1757335016692,84.26200466,214.5,214.49,0.03]
[1757335016873,86.74116848,214.5,214.49,0.73]
[1757335017077,0.06,214.53,214.49,0.73]
[1757335017286,4.6616073,214.52,214.49,0.73]
[1757335017579,4.72135272,214.53,214.49,0.73]
[1757335018187,18.85389835,214.53,214.49,0.73]
[1757335018387,20.24921941,214.53,214.51,0.5]
[1757335018590,3.87448488,214.52,214.51,0.5]
[1757335019693,8.53605489,214.52,214.51,0.5]
[1757335019884,4.66157001,214.52,214.51,1.2]
[1757335020379,4.66157001,214.52,214.51,0.5]
[1757335020380,8.53605489,214.52,214.51,0.5]
[1757335020575,8.53605489,214.52,214.51,1.2]
[1757335022183,9.19605489,214.52,214.51,0.5]
[1757335022496,8.53605489,214.52,214.51,0.5]
[1757335023093,9.19605489,214.52,214.51,0.5]
[1757335023402,20.84997993,214.52,214.49,0.03]
[1757335023592,3.87448488,214.5,214.49,0.03]
[1757335024103,8.53648954,214.5,214.49,0.03]
[1757335024442,4.66200466,214.5,214.49,0.03]
[1757335024581,84.26182043,214.51,214.49,0.73]
[1757335024981,4.66182043,214.51,214.49,0.03]
[1757335025193,4.66182043,214.51,214.5,0.7]
[1757335025715,8.53630531,214.51,214.49,0.03]
[1757335025890,4.66182043,214.51,214.5,0.7]
[1757335027204,4.66160737,214.52,214.5,0.7]
[1757335027688,4.66160737,214.52,214.51,0.7]
[1757335028083,8.5958376,214.53,214.49,0.03]
[1757335028307,3.87448488,214.52,214.5,0.7]
[1757335028697,3.87448488,214.52,214.51,0.5]
[1757335029111,3.87448488,214.52,214.51,1.2]
[1757335029617,4.72135272,214.53,214.51,1.2]
[1757335030110,8.5958376,214.53,214.52,0.7]
[1757335030412,8.5958376,214.53,214.51,0.5]
[1757335030591,8.5958376,214.53,214.51,1.2]
[1757335031697,3.87448488,214.52,214.51,0.5]
[1757335031994,4.57448488,214.52,214.49,0.03]
[1757335032206,3.87448488,214.5,214.49,0.03]
[1757335032618,4.57448488,214.5,214.49,0.03]
[1757335033614,9.23648954,214.5,214.49,0.03]
[1757335033913,13.11097442,214.5,214.49,0.03]
[1757335034117,26.70656843,214.5,214.49,0.03]
[1757335035016,28.57298002,214.5,214.49,0.03]
[1757335035194,9.23648954,214.5,214.49,0.03]
[1757335035996,8.53648954,214.5,214.49,0.03]
[1757335045005,8.53648954,214.5,214.49,0.73]
[1757335046127,3.87448488,214.5,214.49,0.73]
[1757335046322,3.87448488,214.5,214.49,0.03]
[1757335047315,4.57448488,214.5,214.49,0.03]
[1757335047624,3.87448488,214.5,214.49,0.03]
[1757335047809,22.04456377,214.5,214.49,0.03]
[1757335048006,26.70656843,214.5,214.49,0.03]
[1757335048604,22.13208355,214.5,214.49,0.03]
[1757335049026,22.83208355,214.5,214.49,0.03]
[1757335049333,8.53648954,214.5,214.49,0.03]
[1757335049910,9.23648954,214.5,214.49,0.03]
[1757335050110,8.53648954,214.5,214.49,0.03]
[1757335051429,9.23648954,214.5,214.49,0.03]
[1757335052705,13.11097442,214.5,214.49,0.03]
[1757335053827,14.97738601,214.5,214.49,0.03]
[1757335054531,51.47738601,214.5,214.49,0.03]
[1757335057432,79.57,214.48,214.46,0.03]
[1757335057610,88.10714166,214.47,214.46,0.03]
[1757335059628,84.23265678,214.47,214.46,0.69]
[1757335059820,88.10714166,214.47,214.46,0.69]
[1757335062229,88.10714166,214.47,214.46,0.03]
[1757335062537,8.53714166,214.47,214.46,0.03]
[1757335064624,8.53714166,214.47,214.45,0.03]
[1757335064625,9.21714166,214.47,214.45,1e-08]
[1757335064828,3.87448488,214.46,214.45,1e-08]
[1757335066624,3.87448488,214.46,214.45,0.66000001]
[1757335066822,8.53735907,214.46,214.45,0.66000001]
[1757335067948,8.53735907,214.46,214.45,1e-08]
[1757335069538,22.13295308,214.46,214.45,1e-08]
[1757335069737,59.23295308,214.46,214.44,0.03]
[1757335069928,17.47007889,214.45,214.44,0.03]
[1757335070627,20.01683889,214.45,214.41,0.03]
[1757335070949,3.87448488,214.42,214.41,0.03]
[1757335071453,8.53822893,214.42,214.41,0.03]
[1757335071647,4.66374405,214.42,214.41,0.03]
[1757335071855,8.53822893,214.42,214.41,0.03]
[1757335072843,8.53822893,214.42,214.41,0.69]
[1757335073161,22.13382294,214.42,214.41,0.03]
[1757335073738,24.0007572,214.42,214.41,0.03]
[1757335075450,24.0007572,214.42,214.41,0.69]
[1757335075632,10.40516319,214.42,214.41,0.69]
[1757335075832,8.53822893,214.42,214.41,0.69]
[1757335076035,8.53822893,214.42,214.41,0.03]
[1757335076349,8.53822893,214.42,214.41,0.69]
[1757335076654,8.53822893,214.42,214.41,0.03]
[1757335078459,7.14697437,214.42,214.41,0.03]
[1757335081754,7.14697437,214.42,214.41,0.69]
[1757335082073,7.14697437,214.42,214.41,0.03]
[1757335083575,7.14697437,214.42,214.41,0.69]
[1757335083783,7.14697437,214.42,214.41,0.03]
[1757335084883,21.42256838,214.42,214.41,0.03]
[1757335085058,23.28958978,214.42,214.41,0.03]
[1757335085253,7.14697437,214.42,214.41,0.03]
[1757335093165,9.0138215,214.42,214.41,0.03]
[1757335094277,13.59559401,214.41,214.38,0.03]
[1757335094484,2.48323032,214.39,214.38,0.03]
[1757335094982,4.35033887,214.39,214.38,0.03]
[1757335095395,9.01473553,214.39,214.38,0.03]
[1757335096479,22.61032954,214.39,214.38,0.03]
[1757335097072,32.54325082,214.39,214.38,0.03]
[1757335097269,22.61032954,214.39,214.38,0.03]
[1757335098181,32.54325082,214.39,214.38,0.03]
[1757335099882,13.59559401,214.38,214.35,0.03]
[1757335100068,2.48323032,214.36,214.35,0.03]
[1757335100567,4.35060036,214.36,214.35,0.03]
[1757335101576,9.0156498,214.36,214.35,0.03]
[1757335102275,6.53241948,214.36,214.35,0.03]
[1757335102484,9.0156498,214.36,214.35,0.7]
[1757335103769,9.0156498,214.36,214.35,0.03]
[1757335104785,9.0156498,214.36,214.35,0.7]
[1757335105985,9.0156498,214.36,214.35,0.03]
[1757335110971,9.0156498,214.36,214.35,0.7]
[1757335111775,7.14827976,214.36,214.35,0.7]
[1757335112694,4.66504944,214.36,214.35,0.7]
[1757335113681,7.14827976,214.36,214.35,0.7]
[1757335114283,11.71986932,214.42,214.35,0.7]
[1757335114590,2.48323032,214.41,214.35,0.7]
[1757335114971,4.66396156,214.41,214.35,0.7]
[1757335115170,4.66396156,214.41,214.37,26.0]
[1757335115473,4.66396156,214.41,214.38,0.67]
[1757335116479,0.06,214.42,214.38,26.67]
[1757335116701,0.06,214.42,214.39,0.68]
[1757335117874,0.06,214.39,214.36,26.0]
[1757335118376,0.06,214.39,214.37,0.68]
[1757335118871,0.06,214.41,214.38,26.0]
[1757335119076,0.06,214.41,214.39,0.68]
[1757335121195,0.06,214.41,214.4,0.5]
[1757335121700,0.06,214.41,214.4,27.18]
[1757335122283,0.06,214.41,214.4,0.5]
[1757335122477,2.54323032,214.41,214.37,0.68]
[1757335122678,2.48323032,214.39,214.38,0.68]
[1757335122873,0.06,214.41,214.38,0.68]
[1757335123078,2.54323032,214.41,214.39,0.68]
[1757335123907,4.6641791,214.4,214.39,0.68]
[1757335124687,17.01462686,214.4,214.35,0.03]
[1757335124886,19.49785718,214.4,214.35,0.71]
[1757335125194,2.48323032,214.36,214.35,0.71]
[1757335125505,1.8670214,214.39,214.36,0.68]
[1757335125691,2.48323032,214.39,214.35,0.03]
[1757335125884,2.48323032,214.38,214.36,0.68]
[1757335126196,2.48323032,214.37,214.35,0.03]
[1757335126399,2.48323032,214.36,214.35,0.03]
[1757335127405,14.00331411,214.39,214.35,0.03]
[1757335127582,2.48323032,214.36,214.35,0.71]
[1757335128007,7.14827976,214.36,214.35,0.71]
[1757335128190,7.14827976,214.36,214.35,0.03]
[1757335128806,4.66504944,214.36,214.35,0.71]
[1757335128989,2.48323032,214.36,214.35,0.71]
[1757335129810,1.35377932,214.36,214.35,0.71]
[1757335130309,6.01882876,214.36,214.35,0.71]
[1757335131408,6.01882876,214.36,214.35,0.03]
[1757335131710,7.14827976,214.36,214.35,0.03]
[1757335132111,9.01547547,214.36,214.35,0.03]
[1757335133512,9.70547547,214.36,214.35,0.03]
[1757335136008,23.30106948,214.36,214.35,0.03]
[1757335140213,18.26107875,214.34,214.33,0.03]
[1757335140412,22.14436963,214.34,214.33,0.03]
[1757335140604,22.83436963,214.34,214.33,0.03]
[1757335140798,24.70200124,214.34,214.33,0.03]
[1757335142091,6.53311635,214.34,214.33,0.03]
[1757335142598,10.41640723,214.34,214.33,0.03]
[1757335143628,13.59559401,214.33,214.3,0.03]
[1757335143927,17.47888489,214.31,214.3,0.03]
[1757335144305,17.47888489,214.31,214.28,1e-08]
[1757335144306,13.59559401,214.3,214.28,1e-08]
[1757335144507,21.36217577,214.29,214.28,1e-08]
[1757335144802,22.05217577,214.29,214.25,0.2]
[1757335145003,7.76658176,214.28,214.25,0.2]
[1757335145211,7.76658176,214.28,214.27,1e-08]
[1757335145424,13.59559401,214.27,214.25,0.2]
[1757335145728,17.47888489,214.26,214.25,0.2]
[1757335146098,18.17888489,214.26,214.25,0.2]
[1757335146301,22.84611162,214.26,214.25,0.2]
[1757335147298,13.59559401,214.25,214.22,0.2]
[1757335147501,3.88329088,214.23,214.22,0.2]
[1757335147723,8.59598284,214.23,214.22,0.2]
[1757335148131,3.88329088,214.23,214.22,0.2]
[1757335148307,10.41967522,214.23,214.22,0.92]
[1757335148700,6.53638434,214.23,214.22,0.92]
[1757335148910,10.41967522,214.23,214.22,0.92]
[1757335149115,6.53638434,214.23,214.22,0.92]
[1757335149318,10.41967522,214.23,214.22,0.92]
[1757335149514,3.88329088,214.23,214.22,0.92]
[1757335149707,3.88329088,214.24,214.22,0.92]
[1757335149912,3.88329088,214.23,214.22,0.92]
[1757335150121,3.88329088,214.23,214.22,0.2]
[1757335150429,3.88329088,214.24,214.22,0.2]
[1757335150726,3.88329088,214.24,214.22,0.92]
[1757335150927,3.88329088,214.24,214.23,0.72]
[1757335152811,8.55095331,214.24,214.23,0.72]
[1757335153034,8.55095331,214.24,214.22,0.2]
[1757335153325,3.88329088,214.23,214.22,0.2]
[1757335153718,3.88329088,214.23,214.22,0.92]
[1757335154104,3.88329088,214.23,214.22,0.2]
[1757335154911,8.55117119,214.23,214.22,0.2]
[1757335156329,22.1467652,214.23,214.22,0.2]
[1757335156641,13.59559401,214.22,214.21,0.2]
[1757335156806,18.17888489,214.22,214.21,0.2]
[1757335157135,22.8469831,214.22,214.21,0.2]
[1757335157324,22.8469831,214.22,214.2,0.2]
[1757335157524,4.58329088,214.21,214.2,0.2]
[1757335158255,9.25160701,214.21,214.2,0.2]
[1757335160446,22.84720102,214.21,214.2,0.2]
[1757335160829,6.53708204,214.21,214.2,0.92]
[1757335161147,4.66788031,214.23,214.2,0.92]
[1757335161343,4.66788031,214.23,214.21,0.72]
[1757335161826,84.26770459,214.24,214.21,0.72]
[1757335166145,84.26770459,214.24,214.22,0.67066441]
[1757335167530,84.26770459,214.24,214.2,26.2]
[1757335167738,95.93686067,214.24,214.2,26.2]
[1757335167953,20.22015155,214.24,214.2,0.2]
[1757335168154,3.88329088,214.23,214.2,0.2]
[1757335168353,4.66809821,214.22,214.21,0.72]
[1757335169231,15.55132163,214.27,214.21,0.72]
[1757335169431,4.66722673,214.26,214.21,0.72]
[1757335169731,8.55051761,214.26,214.21,0.72]
[1757335171054,20.21858444,214.26,214.22,36.62]
[1757335171252,3.88329088,214.24,214.2,0.92]
[1757335171461,0.06,214.22,214.21,0.72]
[1757335172432,4.72809821,214.22,214.21,0.72]
[1757335172853,0.06,214.22,214.21,0.72]
[1757335174565,0.06,214.22,214.21,37.4]
[1757335189086,0.06,214.22,214.21,0.72]
[1757335189281,0.06,214.22,214.21,36.59]
[1757335189667,0.06,214.22,214.21,37.28]
[1757335190062,0.06,214.22,214.21,36.59]
[1757335191089,0.06,214.22,214.21,37.28]
[1757335193984,0.06,214.22,214.21,37.24]
[1757335194980,0.06,214.22,214.21,36.55]
[1757335195168,4.22788031,214.23,214.21,0.03]
[1757335195371,4.22788031,214.23,214.22,37.19]
[1757335195572,8.61086163,214.25,214.22,37.19]
[1757335195780,8.61086163,214.25,214.22,36.5]
[1757335195974,4.72757075,214.25,214.22,36.5]
[1757335196173,8.61086163,214.25,214.22,37.19]
[1757335196387,8.61086163,214.25,214.22,36.5]
[1757335196577,9.29086163,214.25,214.22,36.5]
[1757335197778,8.61086163,214.25,214.22,36.5]
[1757335199192,0.06,214.25,214.22,37.19]
[1757335199374,3.94329088,214.25,214.22,37.19]
[1757335200192,0.06,214.25,214.22,37.19]
[1757335200374,2.54608753,214.25,214.22,37.19]
[1757335202993,4.66766243,214.24,214.22,37.19]
[1757335204785,4.66766243,214.24,214.22,0.69]
[1757335204991,4.66766243,214.24,214.23,36.44]
[1757335205285,2.48608753,214.24,214.23,36.44]
[1757335205797,2.54608753,214.25,214.23,36.44]
[1757335206785,4.66766243,214.24,214.23,36.44]
[1757335208411,4.66766243,214.24,214.22,0.69]
[1757335208598,7.15374996,214.24,214.23,36.4]
[1757335208802,7.85374996,214.24,214.23,36.4]
[1757335208980,7.15374996,214.24,214.23,36.4]
[1757335209409,7.85374996,214.24,214.22,0.03]
[1757335209596,4.66766243,214.24,214.22,0.03]
[1757335209900,4.66766243,214.24,214.23,0.66]
[1757335210085,9.08195429,214.25,214.23,0.66]
[1757335210293,7.21362481,214.25,214.23,0.66]
[1757335211302,4.72753728,214.25,214.24,36.42]
[1757335212006,7.21362481,214.25,214.24,36.42]
[1757335214709,4.72753728,214.25,214.24,36.42]
[1757335216413,0.06,214.25,214.24,37.08]
[1757335223213,0.06,214.25,214.24,0.66]
[1757335223404,0.06,214.25,214.24,37.0]
[1757335231432,0.06,214.25,214.24,41.66766243]
[1757335232526,0.06,214.25,214.24,37.0]
[1757335235234,0.06,214.25,214.24,41.66766243]
[1757335235745,0.06,214.25,214.24,37.0]
[1757335251054,0.06,214.25,214.24,36.34]
[1757335251647,0.06,214.25,214.24,41.70766243]
[1757335252266,0.06,214.27,214.26,26.0]
[1757335252556,0.06,214.27,214.26,55.28282074]
[1757335252751,0.02127898,214.27,214.26,55.28282074]
[1757335253561,0.02127898,214.27,214.26,57.14966787]
[1757335253751,0.02127898,214.27,214.26,100.91261669]
[1757335254348,0.02127898,214.27,214.26,20.82966787]
[1757335254661,0.02127898,214.27,214.26,57.14966787]
[1757335257456,0.02127898,214.27,214.26,57.14966787]
[1757335258340,0.02127898,214.27,214.26,20.82966787]
[1757335258541,0.02127898,214.27,214.26,57.14966787]
[1757335259253,0.02127898,214.27,214.26,21.29639054]
[1757335259450,0.02127898,214.27,214.26,57.61639054]
[1757335261244,0.02127898,214.27,214.26,57.59639054]
[1757335262378,0.00127898,214.27,214.26,57.59639054]
[1757335264357,0.00127898,214.27,214.26,21.29639054]
[1757335264556,0.00127898,214.27,214.26,57.59639054]
[1757335268684,0.06,214.28,214.27,13.59559401]
[1757335268853,0.06,214.28,214.27,14.25559401]
[1757335269569,0.06,214.3,214.29,39.59559401]
[1757335269782,0.06,214.3,214.29,76.36225134]
[1757335269966,0.06,214.3,214.29,77.02225134]
[1757335270278,0.06,214.3,214.29,78.88892423]
[1757335270584,0.06,214.32,214.29,78.88892423]
[1757335270786,0.06,214.32,214.31,13.59559401]
[1757335270990,0.06,214.32,214.31,50.36220779]
[1757335271157,0.06,214.35,214.34,13.59559401]
[1757335271158,1e-08,214.35,214.34,13.59559401]
[1757335271358,0.06,214.38,214.37,39.59559401]
[1757335271567,0.06,214.38,214.37,75.89559401]
[1757335271775,0.06,214.38,214.37,80.56042584]
[1757335271957,0.06,214.38,214.37,82.42648914]
[1757335274360,0.06,214.38,214.37,46.12648914]
[1757335274563,0.75,214.38,214.37,82.42648914]
[1757335274762,0.75,214.38,214.37,1.8660633]
[1757335275063,0.75,214.38,214.37,62.28]
[1757335279171,0.06,214.38,214.37,75.87559401]
[1757335279390,0.75,214.38,214.37,75.87559401]
[1757335282760,0.06,214.38,214.37,75.87559401]
[1757335282961,0.06,214.38,214.37,76.53559401]
[1757335283976,0.06,214.38,214.37,81.20042584]
[1757335286298,0.06,214.38,214.37,95.19590064]
[1757335287896,0.06,214.39,214.38,13.59559401]
[1757335288066,0.06,214.39,214.38,14.25559401]
[1757335288575,0.06,214.41,214.4,26.0]
[1757335288775,0.06,214.41,214.4,62.28]
[1757335289000,0.06,214.41,214.4,62.94]
[1757335289186,0.06,214.41,214.4,28.52597625]
[1757335289371,0.06,214.41,214.4,64.80597625]
[1757335290474,0.06,214.41,214.4,83.06574936]
[1757335291298,0.75,214.41,214.4,41.46157026]
[1757335291472,0.75,214.41,214.4,75.85559401]